bitfinex-derivatives/quotes_ETHF0:USTF0_20250320
["timestamp","ask_amount","ask_price","bid_price","bid_amount"]
[1742434594447,0.6464,2028.1,2028.0,0.78878]
[1742434594649,1.9612,2028.1,2028.0,0.78878]
[1742434595152,2.74994,2028.1,2027.9,3.99659]
[1742434595445,1.43514,2028.1,2028.0,1.3436]
[1742434595754,1.43514,2028.1,2027.9,3.99659]
[1742434596049,1.43514,2028.1,2028.0,1.3436]
[1742434596747,1.43514,2028.1,2028.0,2.13238]
[1742434596952,0.6464,2028.1,2028.0,2.13238]
[1742434597155,0.6464,2028.1,2028.0,2.76888]
[1742434599661,1.43514,2028.1,2028.0,2.76888]
[1742434600046,1.43514,2028.1,2028.0,1.9801]
[1742434600946,0.6464,2028.1,2028.0,2.76888]
[1742434601256,0.00738807,2028.2,2028.1,0.78874]
[1742434601455,0.00738807,2028.2,2028.1,2.12814]
[1742434601858,5.96,2028.6,2028.1,2.12814]
[1742434601859,6.6316,2028.6,2028.1,4.6794]
[1742434602152,1.46015,2028.6,2028.3,0.78863]
[1742434602353,1.46015,2028.6,2028.4,1.3394]
[1742434602852,0.6716,2028.6,2028.4,2.12801]
[1742434603053,0.6716,2028.6,2028.5,0.6561]
[1742434603254,1.46014,2028.6,2028.5,1.9955]
[1742434605957,4.0116,2028.6,2028.2,3.2078]
[1742434606152,4.0116,2028.6,2028.2,4.57]
[1742434606359,0.78865,2028.4,2028.2,4.57]
[1742434606749,0.78866,2028.3,2028.2,4.57]
[1742434606951,3.2078,2028.5,2028.2,4.57]
[1742434607253,0.78866,2028.3,2028.2,3.2078]
[1742434609164,4.12866,2028.3,2028.2,3.2078]
[1742434609459,3.34,2028.3,2028.0,1.95]
[1742434609663,0.78874,2028.1,2028.0,1.95]
[1742434610663,1.45192,2028.2,2028.0,2.73878]
[1742434610861,1.45192,2028.2,2028.1,1.3952]
[1742434611972,0.78874,2028.1,2027.9,4.65518807]
[1742434612171,0.78874,2028.1,2027.9,3.86638807]
[1742434612771,0.78874,2028.1,2028.0,1.3952]
[1742434613763,0.6632,2028.2,2028.1,0.78874]
[1742434614055,1.4519,2028.2,2028.0,2.18395]
[1742434614566,1.4519,2028.2,2028.1,1.3652]
[1742434614771,0.6632,2028.2,2028.1,1.3652]
[1742434615065,1.9625,2028.2,2028.1,2.15394]
[1742434615267,3.34,2028.3,2028.2,0.78869]
[1742434615466,1.2993,2028.3,2028.2,2.81609]
[1742434615668,5.96,2028.4,2028.3,0.78866]
[1742434615868,5.96,2028.4,2028.3,2.15386]
[1742434616065,5.96,2028.4,2028.3,2.80056]
[1742434616269,5.96,2028.4,2028.3,2.0119]
[1742434616571,7.308,2028.4,2028.3,2.80056]
[1742434617465,4.6774,2028.6,2028.3,2.0119]
[1742434617768,1.348,2028.5,2028.4,2.06552]
[1742434617963,2.13658,2028.5,2028.4,1.2769]
[1742434618363,1.348,2028.5,2028.4,2.06552]
[1742434618674,3.34,2028.6,2028.5,0.78858]
[1742434618860,5.47654,2028.6,2028.5,1.2769]
[1742434619265,1.348,2028.6,2028.5,2.06548]
[1742434619564,2.13654,2028.6,2028.5,2.06548]
[1742434619864,1.348,2028.6,2028.5,2.06548]
[1742434621161,2.13654,2028.6,2028.5,1.2769]
[1742434621564,2.13654,2028.6,2028.5,2.06548]
[1742434622073,1.348,2028.6,2028.5,2.06548]
[1742434622576,2.13654,2028.6,2028.5,2.06548]
[1742434623776,2.13654,2028.6,2028.5,1.2769]
[1742434624463,1.348,2028.6,2028.3,1.43534]
[1742434624665,2.0207,2028.5,2028.3,2.77964]
[1742434624861,2.17242,2028.4,2028.3,1.991]
[1742434625063,2.17242,2028.4,2028.3,2.77966]
[1742434625269,0.78866,2028.3,2028.2,3.2078]
[1742434625464,5.44766,2028.3,2028.2,3.2078]
[1742434626678,0.78874,2028.1,2028.0,1.329]
[1742434627567,2.13434,2028.1,2028.0,1.329]
[1742434628663,2.13434,2028.1,2028.0,2.11778]
[1742434628861,2.13434,2028.1,2028.0,1.329]
[1742434631273,0.78878,2028.0,2027.9,0.00738807]
[1742434631473,0.78885,2027.8,2027.7,5.40248]
[1742434631778,0.78885,2027.8,2027.7,4.6136]
[1742434632981,0.78885,2027.8,2027.6,0.78892]
[1742434632982,0.78893,2027.6,2027.5,0.00738807]
[1742434633274,0.78893,2027.6,2027.5,8.07e-06]
[1742434633275,7.37373,2027.6,2027.5,8.07e-06]
[1742434633678,8.66433,2027.6,2027.5,8.07e-06]
[1742434634568,11.16433,2027.6,2027.5,8.07e-06]
[1742434635169,11.24845068,2027.6,2027.5,8.07e-06]
[1742434636471,17.20845068,2027.6,2027.5,8.07e-06]
[1742434638473,17.12433,2027.6,2027.5,8.07e-06]
[1742434638671,17.20839709,2027.6,2027.5,8.07e-06]
[1742434646078,0.78932,2026.6,2026.5,1.3949]
[1742434647481,2.17632,2026.6,2026.5,1.3949]
[1742434648187,0.78932,2026.6,2026.5,1.3949]
[1742434649285,0.00738807,2026.8,2026.7,0.78928]
[1742434649487,12.5208,2027.1,2026.9,0.78919]
[1742434649687,0.78912,2027.2,2027.0,2.053]
[1742434649988,4.14409,2027.2,2027.1,1.3727]
[1742434652789,4.14409,2027.2,2027.1,2.063]
[1742434654490,4.57698807,2027.4,2027.1,2.85213]
[1742434654689,4.00421807,2027.4,2027.2,2.14637]
[1742434654995,4.00421807,2027.4,2027.3,2.14635]
[1742434654996,3.21518807,2027.4,2027.3,2.14635]
[1742434655388,0.00738807,2027.4,2027.3,2.14635]
[1742434655892,0.00738807,2027.4,2027.3,1.3573]
[1742434655893,0.79639807,2027.4,2027.3,1.3573]
[1742434656593,0.79639807,2027.4,2027.3,2.14635]
[1742434656794,0.79639807,2027.4,2027.3,1.3573]
[1742434657395,0.79639807,2027.4,2027.3,2.14635]
[1742434657593,0.79639807,2027.4,2027.3,1.3573]
[1742434658188,0.79639807,2027.4,2027.3,2.14635]
[1742434658390,0.00738807,2027.4,2027.3,2.14635]
[1742434659094,0.79639807,2027.4,2027.3,1.3573]
[1742434660385,2.20269807,2027.4,2027.3,1.3573]
[1742434660885,0.79639807,2027.4,2027.3,1.3573]
[1742434661285,0.00738807,2027.4,2027.3,2.14635]
[1742434661488,0.00738807,2027.4,2027.3,1.3573]
[1742434661895,0.00738807,2027.4,2027.3,2.14635]
[1742434662095,0.00738807,2027.4,2027.3,1.3573]
[1742434662397,0.00738807,2027.4,2027.3,2.14635]
[1742434662596,0.00738807,2027.4,2027.3,1.3573]
[1742434662790,0.00738807,2027.4,2027.3,2.14635]
[1742434662987,9.1678,2027.8,2027.3,4.5651]
[1742434663291,0.78895,2027.6,2027.4,1.9633]
[1742434663591,7.34568,2027.8,2027.5,2.07177]
[1742434663797,7.34568,2027.8,2027.6,1.2828]
[1742434663996,3.2078,2027.8,2027.6,1.2828]
[1742434664295,3.99668,2027.8,2027.6,1.2828]
[1742434664495,3.99668,2027.8,2027.6,2.07173]
[1742434664686,3.35638807,2027.9,2027.7,3.2078]
[1742434664886,4.14519807,2027.9,2027.8,0.6391]
[1742434665087,4.14519807,2027.9,2027.8,1.9666]
[1742434665794,0.79619807,2027.9,2027.8,1.9666]
[1742434666194,0.79619807,2027.9,2027.8,2.6559]
[1742434666694,0.00738807,2027.9,2027.8,3.44475]
[1742434667400,3.99653,2028.2,2028.0,0.78876]
[1742434667592,3.99653,2028.2,2028.1,1.3275]
[1742434667593,3.2078,2028.2,2028.1,1.3275]
[1742434667800,0.78864,2028.4,2028.2,0.78868]
[1742434668100,0.78862,2028.4,2028.3,2.7205]
[1742434669203,2.08572,2028.4,2028.3,2.0176]
[1742434669395,2.76322,2028.4,2028.3,2.0176]
[1742434669603,2.76322,2028.4,2028.3,1.3783]
[1742434671987,0.7887,2028.2,2028.1,1.3422]
[1742434672187,0.7887,2028.2,2028.1,2.66]
[1742434675494,0.7887,2028.2,2028.1,1.9571]
[1742434675891,2.0855,2028.2,2028.1,1.9571]
[1742434680099,4.6368,2028.2,2027.7,9.1678]
[1742434680306,0.78883,2027.9,2027.8,0.78885]
[1742434680495,0.78883,2027.9,2027.8,1.2967]
[1742434681304,0.78881,2027.9,2027.8,1.2967]
[1742434681503,2.11221,2027.9,2027.8,1.2967]
[1742434681903,2.11221,2027.9,2027.8,2.08555]
[1742434682493,2.11221,2027.9,2027.8,1.2967]
[1742434683197,4.5312,2027.9,2027.6,0.00738807]
[1742434683399,0.78889,2027.7,2027.6,1.31388807]
[1742434683600,0.78889,2027.7,2027.6,0.00738807]
[1742434683804,2.15519,2027.7,2027.6,0.00738807]
[1742434685800,1.97236,2027.6,2027.1,1.4795]
[1742434686000,4.7063,2027.5,2027.2,1.3065]
[1742434686206,0.78908,2027.3,2027.2,1.3065]
[1742434687103,2.08198,2027.3,2027.2,1.3065]
[1742434687704,0.78909,2027.2,2027.1,40.8]
[1742434687912,0.78913,2027.1,2027.0,0.68008807]
[1742434688203,0.78913,2027.1,2027.0,2.02708807]
[1742434688408,2.08203,2027.1,2027.0,2.02708807]
[1742434689406,2.08203,2027.1,2027.0,1.35438807]
[1742434690805,2.08203,2027.1,2027.0,0.00738807]
[1742434691807,0.78936,2026.5,2026.4,1.2857]
[1742434692204,0.78936,2026.5,2026.4,42.0857]
[1742434692705,0.78936,2026.5,2026.4,0.6487]
[1742434693112,0.78936,2026.5,2026.4,1.9944]
[1742434693310,0.78936,2026.5,2026.4,42.7944]
[1742434697305,0.6391,2026.8,2026.4,42.7944]
[1742434697507,3.2078,2026.9,2026.5,1.3712]
[1742434697708,3.2078,2026.9,2026.6,0.6518]
[1742434697909,0.78925,2026.8,2026.7,2.16046]
[1742434698414,0.78917,2027.0,2026.7,1.3712]
[1742434698713,1.4086,2027.1,2026.8,1.3514]
[1742434698714,0.7892,2026.9,2026.8,1.3514]
[1742434699011,0.78919,2027.0,2026.8,2.0171]
[1742434699212,0.78919,2027.0,2026.9,1.3514]
[1742434699413,0.78919,2027.0,2026.9,2.1406]
[1742434699607,0.78919,2027.0,2026.9,1.3514]
[1742434700009,3.2078,2027.2,2026.9,1.3514]
[1742434700209,0.78915,2027.1,2027.0,0.78917]
[1742434700410,5.28879,2027.2,2027.1,0.78913]
[1742434700601,0.6474,2027.4,2027.0,3.2078]
[1742434700808,1.2919,2027.4,2027.2,0.78906]
[1742434701007,2.08091,2027.4,2027.3,1.3514]
[1742434701218,1.2919,2027.4,2027.3,6.01395]
[1742434701513,0.79637807,2027.5,2027.3,9.35493]
[1742434701702,0.79637807,2027.5,2027.4,1.3038]
[1742434701907,2.11857807,2027.5,2027.4,1.3038]
[1742434705919,0.78905,2027.3,2027.2,0.00738807]
[1742434706320,3.99685,2027.3,2027.2,0.00738807]
[1742434706616,5.99915,2027.3,2027.2,0.00738807]
[1742434710421,0.7892,2026.9,2026.8,1.3622]
[1742434710611,0.7892,2026.9,2026.3,5.97090545]
[1742434710612,0.78932,2026.6,2026.5,0.6388]
[1742434710812,0.78932,2026.6,2026.5,1.9951]
[1742434711212,2.0732,2026.7,2026.3,6.64980545]
[1742434711213,0.7894,2026.4,2026.3,0.01090545]
[1742434711822,2.1839,2026.4,2026.3,0.01090545]
[1742434721426,2.1839,2026.4,2026.3,1.40760545]
[1742434728921,0.78948,2026.2,2026.1,1.42831]
[1742434729129,2.84856,2026.3,2026.2,0.78948]
[1742434729428,2.19324,2026.3,2026.2,2.19488]
[1742434730229,1.4038,2026.3,2026.2,2.19488]
[1742434730425,0.00738807,2026.4,2026.3,0.78944]
[1742434730624,0.00738807,2026.4,2026.3,6.10724]
[1742434730924,0.00738807,2026.4,2026.3,46.90724]
[1742434732131,0.79678807,2026.4,2026.3,46.90724]
[1742434732526,0.00738807,2026.4,2026.3,46.90724]
[1742434734231,0.79678807,2026.4,2026.3,46.90724]
[1742434734531,0.00738807,2026.4,2026.3,46.90724]
[1742434735234,0.79678807,2026.4,2026.3,46.90724]
[1742434736135,0.79678807,2026.4,2026.3,6.10724]
[1742434737523,0.00738807,2026.4,2026.3,6.10724]
[1742434737725,1.35398807,2026.4,2026.3,6.10724]
[1742434737924,0.00738807,2026.4,2026.3,6.10724]
[1742434741234,0.00738807,2026.4,2026.3,5.3178]
[1742434741435,2.81048807,2026.4,2026.3,3.2078]
[1742434741938,0.78948,2026.2,2026.1,8.68351]
[1742434742138,0.78948,2026.2,2026.1,5.96]
[1742434742732,2.09908,2026.2,2026.1,5.96]
[1742434742934,0.78952,2026.1,2026.0,3.2078]
[1742434743134,2.09912,2026.1,2026.0,3.2078]
[1742434744438,2.09912,2026.1,2026.0,3.99735]
[1742434744735,2.09912,2026.1,2026.0,3.2078]
[1742434745838,0.78959,2025.9,2025.8,0.78963]
[1742434746233,0.78963,2025.8,2025.7,51.45436]
[1742434746627,0.78963,2025.8,2025.7,3.2078]
[1742434747037,2.15053,2025.8,2025.7,3.2078]
[1742434754349,0.78971,2025.6,2025.5,0.07997628]
[1742434754549,4.13171,2025.6,2025.5,0.07997628]
[1742434754843,0.78979,2025.4,2025.3,4.04950606]
[1742434755046,0.78986,2025.3,2025.2,1.3917]
[1742434755243,0.78986,2025.3,2025.1,44.0078]
[1742434755244,5.31661,2025.3,2024.7,0.6401]
[1742434755445,5.54399,2025.2,2025.0,0.78993]
[1742434755647,5.55139649,2025.2,2025.1,1.3917]
[1742434755849,4.13929649,2025.2,2025.1,1.3917]
[1742434756049,3.34940649,2025.2,2025.1,1.3917]
[1742434756242,0.00740649,2025.2,2025.1,5.38941]
[1742434756748,0.00740649,2025.2,2025.1,8.73141]
[1742434758147,3.342,2025.7,2025.1,11.23141]
[1742434758341,4.13169,2025.7,2025.5,0.78972]
[1742434758643,3.342,2025.8,2025.6,44.79749]
[1742434758946,0.78965,2025.8,2025.7,0.78967]
[1742434759148,0.6384,2025.9,2025.6,3.2078]
[1742434759149,1.42801,2025.9,2025.6,3.2078]
[1742434759350,1.42801,2025.9,2025.7,1.45533]
[1742434759548,0.6384,2025.9,2025.8,0.78963]
[1742434759944,0.00740649,2026.0,2025.9,0.78959]
[1742434760243,0.00740649,2026.0,2025.9,3.99739]
[1742434762645,2.65844,2026.6,2026.2,0.78944]
[1742434762646,4.13143,2026.4,2026.2,0.78944]
[1742434762847,4.82113,2026.4,2026.2,0.78944]
[1742434763151,0.6897,2026.4,2026.3,0.78944]
[1742434763648,0.6851,2026.6,2026.4,0.78938]
[1742434763856,0.78936,2026.5,2026.4,0.78938]
[1742434764148,1.38220649,2026.6,2026.4,0.78938]
[1742434764348,0.78939,2026.5,2026.3,1.48401]
[1742434764556,0.7894,2026.4,2026.3,1.48401]
[1742434764761,0.7894,2026.4,2026.3,1.48404]
[1742434764947,0.78938,2026.5,2026.3,1.48404]
[1742434765250,0.78938,2026.5,2026.2,3.2078]
[1742434765251,0.78944,2026.3,2026.2,3.99726]
[1742434765554,0.78944,2026.3,2026.1,0.78949]
[1742434765757,0.78944,2026.3,2026.0,3.9942]
[1742434765758,0.78943,2026.4,2026.2,0.78946]
[1742434766047,1.38220649,2026.6,2026.2,0.78947]
[1742434766243,1.38220649,2026.6,2026.0,3.9942]
[1742434766439,1.38220649,2026.6,2026.2,0.78948]
[1742434766440,0.78943,2026.4,2026.2,0.78948]
[1742434766649,0.78945,2026.3,2026.0,3.9942]
[1742434766848,0.78947,2026.3,2026.1,0.78951]
[1742434767255,1.3616,2026.2,2025.9,3.2078]
[1742434767453,0.703,2026.2,2026.1,0.78952]
[1742434768055,0.78944,2026.3,2026.2,0.78948]
[1742434768252,0.6803,2026.4,2026.3,0.78944]
[1742434768959,1.46972,2026.4,2026.3,0.78944]
[1742434769452,0.6803,2026.4,2026.3,0.78944]
[1742434769961,4.13775649,2026.6,2026.5,0.78936]
[1742434770359,3.34840649,2026.6,2026.2,3.9072]
[1742434770554,0.78937,2026.5,2026.4,0.78939]
[1742434770754,3.34840649,2026.6,2026.5,0.78936]
[1742434770946,4.13772649,2026.6,2026.5,0.78936]
[1742434771152,4.13772649,2026.6,2026.4,0.78937]
[1742434771953,0.78936,2026.5,2026.2,3.9072]
[1742434772268,3.34840649,2026.6,2026.3,0.78944]
[1742434772269,0.78942,2026.4,2026.3,0.78944]
[1742434772555,1.47432,2026.4,2026.3,0.78944]
[1742434772750,0.6849,2026.4,2026.3,0.78944]
[1742434772946,0.00740649,2026.6,2026.5,0.78936]
[1742434773162,0.00740649,2026.6,2026.5,3.99716]
[1742434774058,0.00740649,2026.6,2026.5,4.66906]
[1742434775058,0.00740649,2026.6,2026.5,5.97236]
[1742434777456,1.42767,2027.0,2026.8,0.78924]
[1742434777457,1.3583,2026.9,2026.8,0.78924]
[1742434777765,0.6648,2027.2,2027.1,0.78913]
[1742434778754,6.01080366,2027.3,2027.2,0.78909]
[1742434779150,6.01080366,2027.3,2027.2,2.18379]
[1742434779555,7.30050366,2027.3,2027.2,2.18379]
[1742434780864,0.78909,2027.2,2027.1,3.2078]
[1742434781066,2.6646,2027.2,2027.1,3.99693]
[1742434781268,2.6646,2027.2,2027.1,5.33403]
[1742434782065,3.45369,2027.2,2027.1,3.99693]
[1742434782466,3.45369,2027.2,2027.1,0.78913]
[1742434783266,2.6646,2027.2,2027.1,0.78913]
[1742434784566,3.45369,2027.2,2027.1,0.78913]
[1742434784968,2.6646,2027.2,2027.1,0.78913]
[1742434785160,1.3104,2027.2,2027.1,1.46513]
[1742434785669,1.3104,2027.2,2027.1,4.67293]
[1742434787974,1.3104,2027.2,2027.1,3.99693]
[1742434788574,2.09949,2027.2,2027.1,3.99693]
[1742434788875,1.3104,2027.2,2027.1,3.99693]
[1742434789475,2.09949,2027.2,2027.1,3.99693]
[1742434789773,1.3104,2027.2,2027.1,3.99693]
[1742434790171,2.09949,2027.2,2027.1,3.99693]
[1742434790377,1.3104,2027.2,2027.1,3.99693]
[1742434791076,6.01080366,2027.3,2027.2,0.78909]
[1742434791280,7.35580366,2027.3,2027.2,2.16049]
[1742434793177,6.01080366,2027.3,2027.2,2.16049]
[1742434796575,6.01080366,2027.3,2027.2,5.49949]
[1742434797870,1.37750649,2027.4,2027.3,0.78905]
[1742434798081,1.37750649,2027.4,2027.3,2.07345]
[1742434798467,0.78907,2027.3,2027.1,3.2078]
[1742434798668,2.06709,2027.2,2027.1,3.2078]
[1742434799573,0.78913,2027.1,2027.0,4.04950606]
[1742434799773,2.85593,2027.1,2027.0,4.04950606]
[1742434800379,2.85593,2027.1,2027.0,4.83867606]
[1742434800676,2.85593,2027.1,2027.0,4.04950606]
[1742434800882,2.85593,2027.1,2026.9,0.00740649]
[1742434800883,0.78917,2027.0,2026.9,0.00740649]
[1742434801076,2.17557,2027.0,2026.9,0.00740649]
[1742434801276,2.17557,2027.0,2026.9,0.79660649]
[1742434801876,1.3864,2027.0,2026.9,0.79660649]
[1742434802985,1.3864,2027.0,2026.9,41.59660649]
[1742434804476,0.6804,2027.1,2026.9,40.80740649]
[1742434804780,0.00740649,2027.4,2027.3,0.78905]
[1742434804975,0.66620649,2027.4,2027.3,0.78905]
[1742434805584,1.45521649,2027.4,2027.3,0.78905]
[1742434805785,1.45521649,2027.4,2027.2,0.78906]
[1742434806082,1.2788,2027.3,2027.2,2.06476]
[1742434806283,2.06785,2027.3,2027.2,2.06476]
[1742434806478,1.2788,2027.3,2027.2,2.06476]
[1742434806870,0.00740649,2027.4,2027.3,0.78905]
[1742434807082,0.00740649,2027.4,2027.3,5.27255]
[1742434807782,0.00740649,2027.4,2027.3,8.61055]
[1742434811880,0.00740649,2027.4,2027.3,5.27255]
[1742434812085,0.79641649,2027.4,2027.3,3.338]
[1742434812291,0.78909,2027.2,2027.1,0.78911]
[1742434812587,0.00740649,2027.4,2027.0,11.24590606]
[1742434812588,2.76596,2027.3,2027.2,0.78909]
[1742434812792,0.6757,2027.3,2027.2,0.78909]
[1742434813188,0.6757,2027.3,2027.2,1.47939]
[1742434813390,0.00740649,2027.4,2027.3,0.78905]
[1742434813691,0.00740649,2027.4,2027.3,2.06395]
[1742434814589,0.00740649,2027.4,2027.3,8.60975]
[1742434815879,9.40839807,2028.2,2027.4,1.97251]
[1742434816081,0.6855,2027.8,2027.6,0.7889]
[1742434816292,0.6855,2027.8,2027.5,0.6775]
[1742434816480,0.6855,2027.8,2027.4,1.3287]
[1742434816685,0.78895,2027.6,2027.4,2.11768]
[1742434816895,0.78891,2027.7,2027.5,0.78895]
[1742434817190,0.79631649,2027.7,2027.5,0.78895]
[1742434817379,0.6582,2027.6,2027.5,0.78895]
[1742434818495,1.44713,2027.6,2027.4,2.11768]
[1742434819194,0.6582,2027.6,2027.5,0.78897]
[1742434819393,1.44713,2027.6,2027.4,2.11768]
[1742434819593,1.44713,2027.6,2027.5,0.78897]
[1742434819794,0.6582,2027.6,2027.5,0.78897]
[1742434822998,0.00740649,2027.7,2027.6,0.78893]
[1742434823201,0.00740649,2027.7,2027.6,7.33373]
[1742434823492,0.00740649,2027.7,2027.6,3.99673]
[1742434823897,0.79629649,2027.7,2027.6,3.2078]
[1742434824495,0.00740649,2027.7,2027.6,3.2078]
[1742434824813,0.00740649,2027.7,2027.6,3.99673]
[1742434825901,0.00740649,2027.7,2027.6,4.65313]
[1742434826204,0.00740649,2027.7,2027.6,3.99673]
[1742434826595,1.32190649,2027.7,2027.6,3.99673]
[1742434827500,1.32190649,2027.7,2027.6,7.33373]
[1742434828699,1.32190649,2027.7,2027.6,8.02293]
[1742434829000,2.11079649,2027.7,2027.6,3.2078]
[1742434830700,1.32190649,2027.7,2027.3,3.2078]
[1742434831001,0.78903,2027.4,2027.2,2.19996]
[1742434831201,0.78899,2027.5,2027.2,1.4109]
[1742434831400,2.79589,2027.5,2027.3,1.4109]
[1742434831899,1.3462,2027.4,2027.3,2.19995]
[1742434832106,0.00740649,2027.7,2027.6,0.78893]
[1742434832703,0.66810649,2027.7,2027.6,0.78893]
[1742434833106,1.45699649,2027.7,2027.5,0.78893]
[1742434833408,0.78895,2027.6,2027.4,4.126]
[1742434833604,0.78898,2027.5,2027.3,1.4035]
[1742434833799,1.43208,2027.5,2027.3,2.19252]
[1742434834295,1.43208,2027.5,2027.4,0.78901]
[1742434834500,0.6431,2027.5,2027.4,0.78901]
[1742434834699,0.66810649,2027.7,2027.5,0.78895]
[1742434834901,2.10013649,2027.7,2027.3,1.4035]
[1742434835105,2.10013649,2027.7,2027.5,0.78896]
[1742434835309,1.31120649,2027.7,2027.6,0.78893]
[1742434835504,2.10009649,2027.7,2027.6,0.78893]
[1742434835703,2.10009649,2027.7,2027.3,1.4035]
[1742434836208,2.10009649,2027.7,2027.6,0.78893]
[1742434836505,1.31120649,2027.7,2027.6,0.78893]
[1742434836808,0.00740649,2027.7,2027.6,0.78893]
[1742434837008,0.00740649,2027.7,2027.6,1.45443]
[1742434837306,0.00740649,2027.7,2027.6,2.85283]
[1742434841713,1.3152,2028.1,2028.0,0.78878]
[1742434841914,3.2078,2028.4,2028.3,0.78866]
[1742434842115,3.99643,2028.4,2028.2,0.78867]
[1742434842315,3.2078,2028.4,2028.2,0.78867]
[1742434842501,3.99645,2028.4,2028.2,0.78867]
[1742434842910,0.7887,2028.2,2028.1,1.29540649]
[1742434843112,0.7887,2028.2,2028.1,0.00740649]
[1742434843813,1.4749,2028.2,2028.1,0.00740649]
[1742434844312,1.4749,2028.2,2028.1,0.79614649]
[1742434844909,0.6862,2028.2,2028.1,0.79614649]
[1742434845110,1.2743,2028.2,2028.1,0.79614649]
[1742434845313,0.6875,2028.3,2028.2,0.7887]
[1742434845520,1.9618,2028.3,2028.2,2.1513]
[1742434845717,2.75046,2028.3,2028.2,1.3626]
[1742434846216,1.9618,2028.3,2028.2,0.7887]
[1742434846417,2.75046,2028.3,2028.1,2.15871649]
[1742434846717,1.2743,2028.2,2028.1,2.15871649]
[1742434850009,2.063,2028.2,2028.1,0.00740649]
[1742434851122,0.78884,2027.9,2027.7,2.11106]
[1742434851515,2.0065,2027.8,2027.7,2.11106]
[1742434852610,2.79535,2027.8,2027.7,2.11106]
[1742434853011,2.0065,2027.8,2027.5,1.48945649]
[1742434853216,0.78893,2027.6,2027.5,0.79637649]
[1742434853824,0.78893,2027.6,2027.5,0.00740649]
[1742434854009,0.78893,2027.6,2027.5,0.79637649]
[1742434854212,1.44563,2027.6,2027.5,0.79637649]
[1742434854619,0.6567,2027.6,2027.5,0.79637649]
[1742434854833,0.6567,2027.6,2027.5,2.19227649]
[1742434855124,1.93,2027.6,2027.5,2.19227649]
[1742434855825,2.71893,2027.6,2027.5,2.19227649]
[1742434856215,2.71893,2027.6,2027.5,0.00740649]
[1742434857022,2.71893,2027.6,2027.5,0.79637649]
[1742434857219,2.71893,2027.6,2027.5,1.33610649]
[1742434860923,2.71893,2027.6,2027.5,0.00740649]
[1742434865833,0.78908,2027.3,2027.2,0.78908]
[1742434866025,6.5428,2027.4,2026.7,3.2078]
[1742434866233,2.6224,2027.2,2026.8,1.3289]
[1742434866537,0.78924,2026.8,2026.7,3.2078]
[1742434866724,0.78928,2026.7,2026.6,1.3289]
[1742434867029,0.78928,2026.7,2026.5,40.8]
[1742434867030,0.78932,2026.6,2026.5,40.80740649]
[1742434867333,0.78932,2026.6,2026.5,1.33630649]
[1742434867334,2.76042,2026.6,2026.5,1.33630649]
[1742434867529,2.76042,2026.6,2026.5,0.00740649]
[1742434868233,10.4311,2026.6,2025.9,3.2078]
[1742434868534,0.78955,2026.0,2025.9,3.2078]
[1742434869429,0.78959,2025.9,2025.8,1.3289]
[1742434869628,0.78963,2025.8,2025.7,0.00740649]
[1742434869840,2.77543,2025.8,2025.7,0.00740649]
[1742434870232,2.77543,2025.8,2025.6,12.83352411]
[1742434870233,0.78967,2025.7,2025.6,11.45782411]
[1742434870425,0.78982,2025.4,2025.2,0.78986]
[1742434870735,0.78979,2025.4,2025.2,0.78985]
[1742434871335,4.78999,2025.7,2025.5,0.78973]
[1742434871731,3.336,2025.7,2025.6,0.78971]
[1742434871933,6.6098,2025.8,2025.7,0.78967]
[1742434872237,0.6498,2025.8,2025.7,0.78967]
[1742434872532,6.55120649,2026.0,2025.4,2.0369]
[1742434872738,4.13299649,2026.0,2025.8,0.78963]
[1742434872928,0.79699649,2026.0,2025.8,0.78963]
[1742434873436,1.47889649,2026.0,2025.8,0.78963]
[1742434873825,0.68930649,2026.0,2025.6,3.2078]
[1742434874135,0.78967,2025.7,2025.6,3.2078]
[1742434874439,4.12661,2025.9,2025.7,0.78966]
[1742434874629,4.12661,2025.9,2025.7,2.07926]
[1742434874830,0.78963,2025.8,2025.7,2.07926]
[1742434875028,4.12662,2025.9,2025.8,0.78963]
[1742434875342,4.12662,2025.9,2025.7,2.07925]
[1742434875529,0.78963,2025.8,2025.7,1.2896]
[1742434875838,3.337,2025.9,2025.7,2.07925]
[1742434876043,3.337,2025.9,2025.8,0.78963]
[1742434876426,3.337,2025.9,2025.6,3.2078]
[1742434876741,0.78967,2025.7,2025.6,3.2078]
[1742434877439,0.78967,2025.7,2025.1,0.00740649]
[1742434877440,0.78987,2025.2,2025.1,0.00740649]
[1742434877739,4.12685,2025.3,2025.1,0.79727649]
[1742434877940,0.78987,2025.2,2025.1,0.00740649]
[1742434878343,4.12686,2025.3,2025.1,0.00740649]
[1742434878533,4.12686,2025.3,2025.2,0.78987]
[1742434878840,0.78987,2025.2,2025.1,0.00740649]
[1742434879542,0.78987,2025.2,2025.1,0.79731649]
[1742434879839,3.99759,2025.4,2025.3,0.78983]
[1742434880037,0.78983,2025.3,2025.2,0.78984]
[1742434880237,3.2078,2025.4,2025.2,1.45424]
[1742434880435,0.78983,2025.3,2025.2,1.45424]
[1742434880634,3.2078,2025.4,2025.3,0.78983]
[1742434881030,3.2078,2025.4,2025.3,1.47283]
[1742434883232,0.78962,2025.9,2025.7,0.78964]
[1742434883637,0.78963,2025.8,2025.7,0.78964]
[1742434884642,0.78963,2025.8,2025.6,3.99748]
[1742434884845,0.78963,2025.8,2025.7,0.78967]
[1742434885040,0.67520649,2026.0,2025.6,3.9975]
[1742434885339,2.09837,2025.7,2025.6,3.2078]
[1742434885534,5.43637,2025.7,2025.6,3.2078]
[1742434886437,5.43637,2025.7,2025.6,3.99751]
[1742434886740,1.3087,2025.7,2025.6,3.99751]
[1742434887543,3.338,2025.8,2025.7,0.78967]